[Event "Titled Tuesday Blitz November 07 Late 2023"]
[White "Pinheiro, Iung Alicio de O."]
[Black "Kovalevsky, Stanislav"]
[WhiteFideId "2104350"]
[BlackFideId "13508598"]
[WhiteElo "2583"]
[BlackElo "2452"]
[Result "0-1"]
[Round "11"]
[TimeControl "180+1"]
[Date "2023.11.08"]
[WhiteClock "0:00:00"]
[BlackClock "0:00:05"]
[Board "50"]

1. c4 {[%clk 0:02:51]}  c6 {[%clk 0:02:58]} 2. g3 {[%clk 0:02:50]}  d5 {[%clk 0:02:58]} 3. Nf3 {[%clk 0:02:50]}  Nf6 {[%clk 0:02:58]} 4. Bg2 {[%clk 0:02:50]}  Bg4 {[%clk 0:02:56]} 5. Ne5 {[%clk 0:02:45]}  Bf5 {[%clk 0:02:52]} 6. Qb3 {[%clk 0:02:39]}  Qc8 {[%clk 0:02:42]} 7. cxd5 {[%clk 0:02:32]}  cxd5 {[%clk 0:02:41]} 8. Nc3 {[%clk 0:02:32]}  e6 {[%clk 0:02:40]} 9. d3 {[%clk 0:01:59]}  Nc6 {[%clk 0:02:37]} 10. Bf4 {[%clk 0:01:53]}  Nxe5 {[%clk 0:02:19]} 11. Bxe5 {[%clk 0:01:51]}  Nd7 {[%clk 0:02:20]} 12. Bf4 {[%clk 0:01:46]}  Be7 {[%clk 0:02:13]} 13. Rc1 {[%clk 0:01:42]}  Nc5 {[%clk 0:02:01]} 14. Qd1 {[%clk 0:01:33]}  Qd8 {[%clk 0:01:34]} 15. b4 {[%clk 0:01:16]}  Nd7 {[%clk 0:01:31]} 16. a3 {[%clk 0:01:13]}  O-O {[%clk 0:01:28]} 17. Nb5 {[%clk 0:01:07]}  e5 {[%clk 0:00:57]} 18. Bd2 {[%clk 0:00:56]}  Nb6 {[%clk 0:00:46]} 19. O-O {[%clk 0:00:42]}  Qd7 {[%clk 0:00:40]} 20. Nc3 {[%clk 0:00:35]}  Bh3 {[%clk 0:00:39]} 21. Qb3 {[%clk 0:00:32]}  Bxg2 {[%clk 0:00:36]} 22. Kxg2 {[%clk 0:00:33]}  Rac8 {[%clk 0:00:32]} 23. a4 {[%clk 0:00:32]}  Rc6 {[%clk 0:00:28]} 24. a5 {[%clk 0:00:32]}  d4 {[%clk 0:00:25]} 25. Na4 {[%clk 0:00:12]}  Nxa4 {[%clk 0:00:19]} 26. Qxa4 {[%clk 0:00:13]}  Rfc8 {[%clk 0:00:17]} 27. b5 {[%clk 0:00:10]}  Rxc1 {[%clk 0:00:13]} 28. Rxc1 {[%clk 0:00:11]}  Rxc1 {[%clk 0:00:13]} 29. Bxc1 {[%clk 0:00:11]}  a6 {[%clk 0:00:12]} 30. Qc4 {[%clk 0:00:07]}  h6 {[%clk 0:00:09]} 31. bxa6 {[%clk 0:00:07]}  bxa6 {[%clk 0:00:08]} 32. Qxa6 {[%clk 0:00:08]}  Bb4 {[%clk 0:00:08]} 33. Qa8+ {[%clk 0:00:06]}  Kh7 {[%clk 0:00:07]} 34. Qe4+ {[%clk 0:00:07]}  g6 {[%clk 0:00:06]} 35. a6 {[%clk 0:00:06]}  Bd6 {[%clk 0:00:05]} 36. Bd2 {[%clk 0:00:05]}  Qa7 {[%clk 0:00:04]} 37. Qb7 {[%clk 0:00:05]}  Bc5 {[%clk 0:00:05]} 38. Qxa7 {[%clk 0:00:05]}  Bxa7 {[%clk 0:00:05]} 39. Kf3 {[%clk 0:00:06]}  Kg7 {[%clk 0:00:05]} 40. Ke4 {[%clk 0:00:06]}  Kf6 {[%clk 0:00:05]} 41. Kd5 {[%clk 0:00:06]}  Kf5 {[%clk 0:00:05]} 42. Kc6 {[%clk 0:00:07]}  Kg4 {[%clk 0:00:06]} 43. Kb7 {[%clk 0:00:07]}  Bc5 {[%clk 0:00:06]} 44. a7 {[%clk 0:00:08]}  Bxa7 {[%clk 0:00:06]} 45. Kxa7 {[%clk 0:00:09]}  Kh3 {[%clk 0:00:06]} 46. Kb6 {[%clk 0:00:05]}  Kxh2 {[%clk 0:00:07]} 47. f4 {[%clk 0:00:06]}  Kxg3 {[%clk 0:00:06]} 48. fxe5 {[%clk 0:00:05]}  h5 {[%clk 0:00:05]} 49. Bg5 {[%clk 0:00:06]}  h4 {[%clk 0:00:04]} 50. Kc5 {[%clk 0:00:04]}  h3 {[%clk 0:00:04]} 51. e6 {[%clk 0:00:03]}  fxe6 {[%clk 0:00:03]} 52. Bf6 {[%clk 0:00:04]}  Kf2 {[%clk 0:00:02]} 53. Bxd4+ {[%clk 0:00:04]}  Kxe2 {[%clk 0:00:03]} 54. Be5 {[%clk 0:00:04]}  Kxd3 {[%clk 0:00:03]} 55. Kd6 {[%clk 0:00:05]}  Ke4 {[%clk 0:00:03]} 56. Kxe6 {[%clk 0:00:04]}  g5 {[%clk 0:00:04]} 57. Kf6 {[%clk 0:00:05]}  g4 {[%clk 0:00:04]} 58. Bh2 {[%clk 0:00:05]}  Kf3 {[%clk 0:00:04]} 59. Kg5 {[%clk 0:00:00]}  g3 {[%clk 0:00:05]} 0-1


[Site "https://www.chess.com"]

[Event "Titled Tuesday Blitz November 07 Late 2023"]
[White "Shapiro, Viktor"]
[Black "Akhayan, Ruben"]
[WhiteFideId "4175700"]
[BlackFideId "204439"]
[WhiteElo "2579"]
[BlackElo "2454"]
[Result "0-1"]
[Round "11"]
[TimeControl "180+1"]
[Date "2023.11.07"]
[WhiteClock "0:01:35"]
[BlackClock "0:01:52"]
[Board "51"]

1. c4 {[%clk 0:03:00]}  Nf6 {[%clk 0:02:59]} 2. Nc3 {[%clk 0:03:01]}  g6 {[%clk 0:02:57]} 3. Nf3 {[%clk 0:03:01]}  d5 {[%clk 0:02:55]} 4. cxd5 {[%clk 0:03:00]}  Nxd5 {[%clk 0:02:56]} 5. Qb3 {[%clk 0:03:00]}  Nb6 {[%clk 0:02:56]} 6. d4 {[%clk 0:03:00]}  Bg7 {[%clk 0:02:56]} 7. Bf4 {[%clk 0:03:01]}  O-O {[%clk 0:02:56]} 8. Rd1 {[%clk 0:03:00]}  c6 {[%clk 0:02:52]} 9. e3 {[%clk 0:02:59]}  Be6 {[%clk 0:02:53]} 10. Qc2 {[%clk 0:02:59]}  Na6 {[%clk 0:02:52]} 11. a3 {[%clk 0:02:59]}  Qd7 {[%clk 0:02:38]} 12. Ne5 {[%clk 0:02:50]}  Bxe5 {[%clk 0:02:33]} 13. dxe5 {[%clk 0:02:48]}  Qc7 {[%clk 0:02:28]} 14. h4 {[%clk 0:02:33]}  h5 {[%clk 0:02:27]} 15. Be2 {[%clk 0:02:32]}  Bf5 {[%clk 0:02:21]} 16. e4 {[%clk 0:02:32]}  Be6 {[%clk 0:02:21]} 17. f3 {[%clk 0:02:27]}  Nc5 {[%clk 0:02:13]} 18. Bg3 {[%clk 0:02:08]}  Bb3 {[%clk 0:02:11]} 19. Qb1 {[%clk 0:02:05]}  Bxd1 {[%clk 0:02:11]} 20. Qxd1 {[%clk 0:02:05]}  Rad8 {[%clk 0:02:10]} 21. Qc2 {[%clk 0:02:05]}  Ne6 {[%clk 0:02:07]} 22. f4 {[%clk 0:01:55]}  Nd4 {[%clk 0:02:05]} 23. Qb1 {[%clk 0:01:52]}  Nxe2 {[%clk 0:02:04]} 24. Kxe2 {[%clk 0:01:51]}  Qd7 {[%clk 0:02:01]} 25. Rd1 {[%clk 0:01:38]}  Qg4+ {[%clk 0:01:59]} 26. Kf2 {[%clk 0:01:38]}  Rxd1 {[%clk 0:01:55]} 27. Nxd1 {[%clk 0:01:38]}  Rd8 {[%clk 0:01:54]} 28. Qc2 {[%clk 0:01:35]}  Qxd1 {[%clk 0:01:52]} 0-1


[Site "https://www.chess.com"]

[Event "Titled Tuesday Blitz November 07 Late 2023"]
[White "Mazurkiewicz, Michal"]
[Black "a-z30"]
[WhiteFideId "1124943"]
[WhiteElo "2438"]
[BlackElo "2536"]
[Result "0-1"]
[Round "11"]
[TimeControl "180+1"]
[Date "2023.11.07"]
[WhiteClock "0:00:00"]
[BlackClock "0:00:08"]
[Board "53"]

1. e4 {[%clk 0:03:00]}  d6 {[%clk 0:03:00]} 2. d4 {[%clk 0:03:00]}  Nf6 {[%clk 0:03:00]} 3. Nc3 {[%clk 0:03:00]}  g6 {[%clk 0:03:01]} 4. f4 {[%clk 0:02:59]}  Bg7 {[%clk 0:03:02]} 5. Nf3 {[%clk 0:03:00]}  O-O {[%clk 0:03:02]} 6. e5 {[%clk 0:02:58]}  dxe5 {[%clk 0:02:59]} 7. dxe5 {[%clk 0:02:59]}  Qxd1+ {[%clk 0:02:58]} 8. Nxd1 {[%clk 0:03:00]}  Nd5 {[%clk 0:02:58]} 9. Bd2 {[%clk 0:02:52]}  Nc6 {[%clk 0:02:44]} 10. a3 {[%clk 0:02:46]}  f6 {[%clk 0:02:21]} 11. c4 {[%clk 0:02:43]}  Nb6 {[%clk 0:02:21]} 12. Bc3 {[%clk 0:02:34]}  Bg4 {[%clk 0:02:17]} 13. Be2 {[%clk 0:02:02]}  Bxf3 {[%clk 0:02:00]} 14. Bxf3 {[%clk 0:02:03]}  fxe5 {[%clk 0:01:55]} 15. c5 {[%clk 0:01:30]}  Nd7 {[%clk 0:01:47]} 16. b4 {[%clk 0:01:11]}  exf4 {[%clk 0:01:43]} 17. Bd5+ {[%clk 0:00:58]}  Kh8 {[%clk 0:01:41]} 18. Bxg7+ {[%clk 0:00:58]}  Kxg7 {[%clk 0:01:41]} 19. Nc3 {[%clk 0:00:59]}  e6 {[%clk 0:01:33]} 20. Ba2 {[%clk 0:00:36]}  Nd4 {[%clk 0:01:24]} 21. O-O-O {[%clk 0:00:35]}  e5 {[%clk 0:01:19]} 22. Rhe1 {[%clk 0:00:33]}  Rae8 {[%clk 0:01:15]} 23. Nd5 {[%clk 0:00:31]}  c6 {[%clk 0:01:10]} 24. Nc7 {[%clk 0:00:31]}  Nf6 {[%clk 0:00:45]} 25. Nxe8+ {[%clk 0:00:28]}  Rxe8 {[%clk 0:00:46]} 26. h3 {[%clk 0:00:16]}  g5 {[%clk 0:00:46]} 27. Rd3 {[%clk 0:00:13]}  h5 {[%clk 0:00:45]} 28. a4 {[%clk 0:00:07]}  g4 {[%clk 0:00:43]} 29. hxg4 {[%clk 0:00:07]}  hxg4 {[%clk 0:00:43]} 30. b5 {[%clk 0:00:07]}  Nf5 {[%clk 0:00:14]} 31. Bb1 {[%clk 0:00:03]}  Ne3 {[%clk 0:00:13]} 32. Rdxe3 {[%clk 0:00:03]}  fxe3 {[%clk 0:00:12]} 33. Rxe3 {[%clk 0:00:04]}  e4 {[%clk 0:00:08]} 34. bxc6 {[%clk 0:00:03]}  bxc6 {[%clk 0:00:07]} 35. g3 {[%clk 0:00:03]}  Kg6 {[%clk 0:00:07]} 36. Kd2 {[%clk 0:00:03]}  Kf5 {[%clk 0:00:08]} 37. Kc3 {[%clk 0:00:00]}  Ke5 {[%clk 0:00:08]} 0-1


[Site "https://www.chess.com"]

[Event "Titled Tuesday Blitz November 07 Late 2023"]
[White "Sepulveda Rojas, Jorge"]
[Black "Arnold, Ken"]
[WhiteFideId "3404803"]
[BlackFideId "2056836"]
[WhiteElo "2502"]
[BlackElo "2433"]
[Result "1-0"]
[Round "11"]
[TimeControl "180+1"]
[Date "2023.11.07"]
[WhiteClock "0:00:05"]
[BlackClock "0:00:00"]
[Board "55"]

1. e4 {[%clk 0:02:59]}  e5 {[%clk 0:02:59]} 2. Nf3 {[%clk 0:02:58]}  Nf6 {[%clk 0:02:59]} 3. Nc3 {[%clk 0:02:57]}  Nc6 {[%clk 0:02:59]} 4. Bb5 {[%clk 0:02:56]}  d6 {[%clk 0:02:58]} 5. Bxc6+ {[%clk 0:02:55]}  bxc6 {[%clk 0:02:58]} 6. h3 {[%clk 0:02:56]}  Be7 {[%clk 0:02:58]} 7. d3 {[%clk 0:02:56]}  c5 {[%clk 0:02:58]} 8. O-O {[%clk 0:02:56]}  O-O {[%clk 0:02:58]} 9. Ne2 {[%clk 0:02:53]}  a5 {[%clk 0:02:57]} 10. c4 {[%clk 0:02:53]}  h6 {[%clk 0:02:57]} 11. Ng3 {[%clk 0:02:52]}  Nh7 {[%clk 0:02:57]} 12. Ne1 {[%clk 0:02:49]}  Bg5 {[%clk 0:02:56]} 13. Nc2 {[%clk 0:02:48]}  a4 {[%clk 0:02:53]} 14. Ne3 {[%clk 0:02:47]}  Bxe3 {[%clk 0:02:53]} 15. Bxe3 {[%clk 0:02:46]}  f5 {[%clk 0:02:45]} 16. exf5 {[%clk 0:02:44]}  Bxf5 {[%clk 0:02:45]} 17. f4 {[%clk 0:02:40]}  exf4 {[%clk 0:02:43]} 18. Rxf4 {[%clk 0:02:31]}  Bg6 {[%clk 0:02:41]} 19. Qd2 {[%clk 0:02:12]}  Rxf4 {[%clk 0:02:39]} 20. Bxf4 {[%clk 0:02:13]}  Qf6 {[%clk 0:02:37]} 21. Be3 {[%clk 0:02:04]}  a3 {[%clk 0:02:23]} 22. d4 {[%clk 0:02:03]}  axb2 {[%clk 0:02:22]} 23. Qxb2 {[%clk 0:02:02]}  Qe6 {[%clk 0:02:11]} 24. Bf2 {[%clk 0:01:57]}  Qxc4 {[%clk 0:02:10]} 25. dxc5 {[%clk 0:01:57]}  dxc5 {[%clk 0:01:58]} 26. Rc1 {[%clk 0:01:55]}  Qxa2 {[%clk 0:01:51]} 27. Qxa2+ {[%clk 0:01:55]}  Rxa2 {[%clk 0:01:51]} 28. Rxc5 {[%clk 0:01:55]}  Rc2 {[%clk 0:01:47]} 29. Ra5 {[%clk 0:01:46]}  Ng5 {[%clk 0:01:45]} 30. Ra8+ {[%clk 0:01:41]}  Kf7 {[%clk 0:01:45]} 31. Ra4 {[%clk 0:01:41]}  Ke6 {[%clk 0:01:40]} 32. Ra6+ {[%clk 0:01:40]}  c6 {[%clk 0:01:40]} 33. Ra4 {[%clk 0:01:40]}  Rc1+ {[%clk 0:01:35]} 34. Kh2 {[%clk 0:01:39]}  Rc2 {[%clk 0:01:35]} 35. Kg1 {[%clk 0:01:38]}  Rc1+ {[%clk 0:01:34]} 36. Kh2 {[%clk 0:01:38]}  Kd5 {[%clk 0:01:24]} 37. Rd4+ {[%clk 0:01:35]}  Ke5 {[%clk 0:01:24]} 38. Rd7 {[%clk 0:01:34]}  Ne6 {[%clk 0:01:22]} 39. Re7 {[%clk 0:01:19]}  Rc2 {[%clk 0:01:16]} 40. Kg1 {[%clk 0:01:19]}  Kd6 {[%clk 0:01:15]} 41. Ra7 {[%clk 0:01:14]}  Nf4 {[%clk 0:01:12]} 42. Rxg7 {[%clk 0:01:07]}  Ke6 {[%clk 0:00:59]} 43. h4 {[%clk 0:00:58]}  h5 {[%clk 0:00:59]} 44. Rg8 {[%clk 0:00:52]}  c5 {[%clk 0:00:58]} 45. Rc8 {[%clk 0:00:50]}  c4 {[%clk 0:00:58]} 46. Nf1 {[%clk 0:00:43]}  Nd3 {[%clk 0:00:53]} 47. Be3 {[%clk 0:00:31]}  Re2 {[%clk 0:00:50]} 48. Rxc4 {[%clk 0:00:25]}  Ne1 {[%clk 0:00:45]} 49. Bf2 {[%clk 0:00:18]}  Nd3 {[%clk 0:00:41]} 50. Be3 {[%clk 0:00:15]}  Ne5 {[%clk 0:00:38]} 51. Rc3 {[%clk 0:00:13]}  Be4 {[%clk 0:00:37]} 52. Bf2 {[%clk 0:00:11]}  Ng4 {[%clk 0:00:34]} 53. Ng3 {[%clk 0:00:10]}  Rxf2 {[%clk 0:00:17]} 54. Nxe4 {[%clk 0:00:10]}  Ra2 {[%clk 0:00:16]} 55. Ng5+ {[%clk 0:00:09]}  Kf5 {[%clk 0:00:16]} 56. Rf3+ {[%clk 0:00:09]}  Kg6 {[%clk 0:00:16]} 57. Ne6 {[%clk 0:00:07]}  Ra1+ {[%clk 0:00:15]} 58. Rf1 {[%clk 0:00:07]}  Ra2 {[%clk 0:00:16]} 59. Nf4+ {[%clk 0:00:06]}  Kh6 {[%clk 0:00:16]} 60. Re1 {[%clk 0:00:06]}  Rb2 {[%clk 0:00:09]} 61. g3 {[%clk 0:00:05]}  Ra2 {[%clk 0:00:07]} 62. Re6+ {[%clk 0:00:05]}  Kh7 {[%clk 0:00:07]} 63. Nxh5 {[%clk 0:00:06]}  Ra1+ {[%clk 0:00:06]} 64. Kg2 {[%clk 0:00:06]}  Ra2+ {[%clk 0:00:06]} 65. Kf3 {[%clk 0:00:06]}  Nh2+ {[%clk 0:00:06]} 66. Kf4 {[%clk 0:00:06]}  Ra4+ {[%clk 0:00:05]} 67. Re4 {[%clk 0:00:07]}  Ra5 {[%clk 0:00:04]} 68. g4 {[%clk 0:00:07]}  Kg6 {[%clk 0:00:03]} 69. g5 {[%clk 0:00:06]}  Kxh5 {[%clk 0:00:03]} 70. Rd4 {[%clk 0:00:05]}  Ng4 {[%clk 0:00:03]} 71. Rd6 {[%clk 0:00:06]}  Kxh4 {[%clk 0:00:02]} 72. g6 {[%clk 0:00:05]}  Rg5 {[%clk 0:00:00]} 73. Rd2 {[%clk 0:00:05]} 1-0


[Site "https://www.chess.com"]

[Event "Titled Tuesday Blitz November 07 Late 2023"]
[White "Cristi_Coca"]
[Black "ATM622"]
[WhiteElo "2492"]
[BlackElo "2428"]
[Result "0-1"]
[Round "11"]
[TimeControl "180+1"]
[Date "2023.11.07"]
[WhiteClock "0:01:52"]
[BlackClock "0:01:53"]
[Board "56"]

1. e4 {[%clk 0:03:00]}  c6 {[%clk 0:02:57]} 2. d4 {[%clk 0:03:01]}  d5 {[%clk 0:02:56]} 3. Nc3 {[%clk 0:03:01]}  dxe4 {[%clk 0:02:56]} 4. Nxe4 {[%clk 0:03:02]}  Bf5 {[%clk 0:02:56]} 5. Ng3 {[%clk 0:03:02]}  Bg6 {[%clk 0:02:56]} 6. N1e2 {[%clk 0:03:03]}  e6 {[%clk 0:02:52]} 7. Nf4 {[%clk 0:03:02]}  Bd6 {[%clk 0:02:53]} 8. c3 {[%clk 0:03:02]}  Nf6 {[%clk 0:02:50]} 9. Bc4 {[%clk 0:02:56]}  O-O {[%clk 0:02:41]} 10. h4 {[%clk 0:02:45]}  Bxf4 {[%clk 0:02:32]} 11. Bxf4 {[%clk 0:02:45]}  Nd5 {[%clk 0:02:15]} 12. Bxb8 {[%clk 0:02:30]}  Rxb8 {[%clk 0:02:07]} 13. h5 {[%clk 0:02:29]}  Bf5 {[%clk 0:02:06]} 14. Nxf5 {[%clk 0:02:29]}  exf5 {[%clk 0:02:06]} 15. Bxd5 {[%clk 0:02:24]}  Re8+ {[%clk 0:02:03]} 16. Kd2 {[%clk 0:02:22]}  Qxd5 {[%clk 0:02:02]} 17. f3 {[%clk 0:02:10]}  f4 {[%clk 0:01:59]} 18. Kc2 {[%clk 0:02:01]}  Qf5+ {[%clk 0:01:54]} 19. Qd3 {[%clk 0:01:52]}  Re2+ {[%clk 0:01:53]} 0-1


[Site "https://www.chess.com"]

[Event "Titled Tuesday Blitz November 07 Late 2023"]
[White "Polaczek, Richard"]
[Black "Willy, Stephen"]
[WhiteFideId "200026"]
[BlackFideId "30981468"]
[WhiteElo "2426"]
[BlackElo "2489"]
[Result "1-0"]
[Round "11"]
[TimeControl "180+1"]
[Date "2023.11.07"]
[WhiteClock "0:00:58"]
[BlackClock "0:01:12"]
[Board "57"]

1. d4 {[%clk 0:03:00]}  Nf6 {[%clk 0:02:57]} 2. Bg5 {[%clk 0:02:59]}  Ne4 {[%clk 0:02:57]} 3. Bf4 {[%clk 0:02:59]}  g5 {[%clk 0:02:57]} 4. Bc1 {[%clk 0:02:57]}  Rg8 {[%clk 0:02:56]} 5. f3 {[%clk 0:02:56]}  Nf6 {[%clk 0:02:55]} 6. e4 {[%clk 0:02:55]}  d6 {[%clk 0:02:56]} 7. Be3 {[%clk 0:02:51]}  h5 {[%clk 0:02:41]} 8. Nc3 {[%clk 0:02:31]}  Nc6 {[%clk 0:02:31]} 9. Nge2 {[%clk 0:02:27]}  e5 {[%clk 0:02:24]} 10. Qd2 {[%clk 0:02:25]}  g4 {[%clk 0:02:18]} 11. d5 {[%clk 0:02:16]}  Ne7 {[%clk 0:02:14]} 12. O-O-O {[%clk 0:02:17]}  Ng6 {[%clk 0:02:10]} 13. h4 {[%clk 0:02:11]}  c5 {[%clk 0:02:06]} 14. Ng3 {[%clk 0:01:58]}  a6 {[%clk 0:02:00]} 15. Bg5 {[%clk 0:01:52]}  Nf4 {[%clk 0:02:00]} 16. Nce2 {[%clk 0:01:35]}  Nxe2+ {[%clk 0:01:34]} 17. Bxe2 {[%clk 0:01:34]}  Be7 {[%clk 0:01:33]} 18. Rdf1 {[%clk 0:01:15]}  Nxd5 {[%clk 0:01:24]} 19. Qxd5 {[%clk 0:01:04]}  Bxg5+ {[%clk 0:01:19]} 20. hxg5 {[%clk 0:01:03]}  Be6 {[%clk 0:01:12]} 21. Qd2 {[%clk 0:00:58]} 1-0


[Site "https://www.chess.com"]

[Event "Titled Tuesday Blitz November 07 Late 2023"]
[White "Wanyama, Harold"]
[Black "Hilary46"]
[WhiteFideId "10000380"]
[WhiteElo "2424"]
[BlackElo "2659"]
[Result "1-0"]
[Round "11"]
[TimeControl "180+1"]
[Date "2023.11.08"]
[WhiteClock "0:01:10"]
[BlackClock "0:00:00"]
[Board "59"]

1. d4 {[%clk 0:02:49]}  d5 {[%clk 0:02:59]} 2. c4 {[%clk 0:02:48]}  e6 {[%clk 0:02:58]} 3. Nc3 {[%clk 0:02:48]}  Nf6 {[%clk 0:02:54]} 4. Nf3 {[%clk 0:02:49]}  c6 {[%clk 0:02:53]} 5. e3 {[%clk 0:02:49]}  Nbd7 {[%clk 0:02:52]} 6. Bd3 {[%clk 0:02:46]}  dxc4 {[%clk 0:02:51]} 7. Bxc4 {[%clk 0:02:47]}  b5 {[%clk 0:02:52]} 8. Bd3 {[%clk 0:02:47]}  a6 {[%clk 0:02:53]} 9. e4 {[%clk 0:02:47]}  c5 {[%clk 0:02:54]} 10. e5 {[%clk 0:02:47]}  cxd4 {[%clk 0:02:54]} 11. Nxb5 {[%clk 0:02:47]}  axb5 {[%clk 0:02:55]} 12. exf6 {[%clk 0:02:48]}  gxf6 {[%clk 0:02:56]} 13. O-O {[%clk 0:02:48]}  Qb6 {[%clk 0:02:56]} 14. Qe2 {[%clk 0:02:48]}  Bb7 {[%clk 0:02:54]} 15. Bf4 {[%clk 0:02:47]}  Rg8 {[%clk 0:02:53]} 16. Bg3 {[%clk 0:02:47]}  b4 {[%clk 0:02:51]} 17. Rfe1 {[%clk 0:02:45]}  Bd6 {[%clk 0:02:49]} 18. Bxh7 {[%clk 0:02:41]}  Rg7 {[%clk 0:02:46]} 19. Be4 {[%clk 0:02:41]}  Ba6 {[%clk 0:02:36]} 20. Qd2 {[%clk 0:02:37]}  Rd8 {[%clk 0:02:29]} 21. Qxd4 {[%clk 0:02:35]}  Qxd4 {[%clk 0:02:28]} 22. Nxd4 {[%clk 0:02:35]}  Bxg3 {[%clk 0:02:27]} 23. hxg3 {[%clk 0:02:35]}  Nc5 {[%clk 0:02:27]} 24. Bc6+ {[%clk 0:02:24]}  Kf8 {[%clk 0:02:27]} 25. Nf3 {[%clk 0:02:23]}  Nd3 {[%clk 0:02:23]} 26. Red1 {[%clk 0:02:21]}  Rc8 {[%clk 0:02:24]} 27. Bb7 {[%clk 0:02:14]}  Bxb7 {[%clk 0:02:22]} 28. Rxd3 {[%clk 0:02:11]}  Bd5 {[%clk 0:02:22]} 29. Rd4 {[%clk 0:02:07]}  Rb8 {[%clk 0:02:19]} 30. a3 {[%clk 0:02:03]}  bxa3 {[%clk 0:02:17]} 31. bxa3 {[%clk 0:02:02]}  Ke7 {[%clk 0:02:16]} 32. a4 {[%clk 0:02:02]}  Rh7 {[%clk 0:02:11]} 33. a5 {[%clk 0:01:59]}  Bxf3 {[%clk 0:02:05]} 34. gxf3 {[%clk 0:01:57]}  Rbh8 {[%clk 0:02:06]} 35. Rh4 {[%clk 0:01:53]}  Rxh4 {[%clk 0:02:06]} 36. gxh4 {[%clk 0:01:54]}  Rxh4 {[%clk 0:02:04]} 37. a6 {[%clk 0:01:54]}  Rh8 {[%clk 0:02:04]} 38. Rb1 {[%clk 0:01:52]}  Kd6 {[%clk 0:01:55]} 39. Rb7 {[%clk 0:01:51]}  Ra8 {[%clk 0:01:45]} 40. a7 {[%clk 0:01:50]}  f5 {[%clk 0:01:38]} 41. Rxf7 {[%clk 0:01:49]}  Kc6 {[%clk 0:01:37]} 42. Kg2 {[%clk 0:01:46]}  Rg8+ {[%clk 0:01:14]} 43. Kh3 {[%clk 0:01:46]}  Kd6 {[%clk 0:01:13]} 44. f4 {[%clk 0:01:43]}  Rh8+ {[%clk 0:01:05]} 45. Kg3 {[%clk 0:01:43]}  Kc6 {[%clk 0:00:58]} 46. Re7 {[%clk 0:01:34]}  Kd5 {[%clk 0:00:51]} 47. Rb7 {[%clk 0:01:32]}  Ra8 {[%clk 0:00:51]} 48. Kh4 {[%clk 0:01:32]}  Ke4 {[%clk 0:00:44]} 49. Rb4+ {[%clk 0:01:25]}  Kf3 {[%clk 0:00:43]} 50. Ra4 {[%clk 0:01:25]}  Rg8 {[%clk 0:00:03]} 51. a8=Q+ {[%clk 0:01:14]}  Rxa8 {[%clk 0:00:03]} 52. Rxa8 {[%clk 0:01:13]}  Kxf4 {[%clk 0:00:04]} 53. Ra3 {[%clk 0:01:11]}  e5 {[%clk 0:00:03]} 54. Kh3 {[%clk 0:01:11]}  e4 {[%clk 0:00:02]} 55. Kg2 {[%clk 0:01:11]}  Ke5 {[%clk 0:00:00]} 56. f3 {[%clk 0:01:10]} 1-0


[Site "https://www.chess.com"]

[Event "Titled Tuesday Blitz November 07 Late 2023"]
[White "The_Straightforward_Rook"]
[Black "Su, Dion"]
[BlackFideId "2029731"]
[WhiteElo "2552"]
[BlackElo "2420"]
[Result "1-0"]
[Round "11"]
[TimeControl "180+1"]
[Date "2023.11.07"]
[WhiteClock "0:00:44"]
[BlackClock "0:00:11"]
[Board "60"]

1. e4 {[%clk 0:03:00]}  e6 {[%clk 0:02:56]} 2. d4 {[%clk 0:03:00]}  d5 {[%clk 0:02:56]} 3. e5 {[%clk 0:03:01]}  c5 {[%clk 0:02:56]} 4. c3 {[%clk 0:03:01]}  Bd7 {[%clk 0:02:55]} 5. Nf3 {[%clk 0:03:01]}  Qb6 {[%clk 0:02:55]} 6. Na3 {[%clk 0:02:51]}  cxd4 {[%clk 0:02:43]} 7. cxd4 {[%clk 0:02:51]}  Bxa3 {[%clk 0:02:40]} 8. bxa3 {[%clk 0:02:52]}  Ne7 {[%clk 0:02:39]} 9. Bd3 {[%clk 0:02:51]}  Nbc6 {[%clk 0:02:34]} 10. Rb1 {[%clk 0:02:44]}  Qa5+ {[%clk 0:02:31]} 11. Qd2 {[%clk 0:02:44]}  Qxd2+ {[%clk 0:02:27]} 12. Bxd2 {[%clk 0:02:45]}  Rb8 {[%clk 0:02:12]} 13. O-O {[%clk 0:02:42]}  O-O {[%clk 0:02:07]} 14. Rfc1 {[%clk 0:02:39]}  Rfc8 {[%clk 0:02:07]} 15. h4 {[%clk 0:02:29]}  h6 {[%clk 0:02:05]} 16. g4 {[%clk 0:02:28]}  Nd8 {[%clk 0:01:43]} 17. Bb4 {[%clk 0:02:24]}  Rxc1+ {[%clk 0:01:37]} 18. Rxc1 {[%clk 0:02:25]}  Rc8 {[%clk 0:01:36]} 19. Rb1 {[%clk 0:02:14]}  Ng6 {[%clk 0:01:31]} 20. Bd2 {[%clk 0:02:09]}  a6 {[%clk 0:01:24]} 21. h5 {[%clk 0:02:05]}  Ne7 {[%clk 0:01:20]} 22. Kg2 {[%clk 0:02:04]}  b5 {[%clk 0:01:18]} 23. a4 {[%clk 0:02:00]}  Rb8 {[%clk 0:01:13]} 24. axb5 {[%clk 0:01:58]}  axb5 {[%clk 0:01:13]} 25. a4 {[%clk 0:01:54]}  Nc8 {[%clk 0:01:00]} 26. axb5 {[%clk 0:01:51]}  Nb6 {[%clk 0:00:49]} 27. Ba5 {[%clk 0:01:46]}  Nc4 {[%clk 0:00:46]} 28. Bc7 {[%clk 0:01:35]}  Rc8 {[%clk 0:00:42]} 29. b6 {[%clk 0:01:33]}  Nb7 {[%clk 0:00:41]} 30. Rc1 {[%clk 0:00:58]}  Nxb6 {[%clk 0:00:38]} 31. Ba6 {[%clk 0:00:55]}  Na8 {[%clk 0:00:31]} 32. Bxb7 {[%clk 0:00:52]}  Rxc7 {[%clk 0:00:30]} 33. Rb1 {[%clk 0:00:45]}  Bc6 {[%clk 0:00:13]} 34. Bxa8 {[%clk 0:00:44]}  Bxa8 {[%clk 0:00:11]} 35. Rb8+ {[%clk 0:00:44]}  Rc8 {[%clk 0:00:11]} 36. Rxc8+ {[%clk 0:00:44]} 1-0


[Site "https://www.chess.com"]